fUSD/lending_fUSD_20240923
["ID","MTS","AMOUNT","RATE_DAILY","PERIOD"]
[339000056,1727113831772,-667.47,0.00011564,2]
[339000057,1727113831780,-250.0,0.0001158,2]
[339000058,1727113831789,-169.92,0.00011582,2]
[339000059,1727113831798,-413.34,0.00011612,2]
[339000060,1727113831807,-300.0,0.00011653,2]
[339000061,1727113831817,-776.85,0.00011654,2]
[339000062,1727113831826,-3106.62,0.00011654,2]
[339000063,1727113831835,-1485.06012996,0.00011655,2]
[339000064,1727113831846,-2331.32555382,0.00011655,2]
[339000065,1727113831862,-1630.83773361,0.00011655,2]
[339000066,1727113831873,-293.41476327,0.00011655,2]
[339000067,1727113831884,-2248.6741294,0.00011655,2]
[339000068,1727113831895,-400.0,0.00011655,2]
[339000069,1727113831905,-1799.06697044,0.00011655,2]
[339000070,1727113831918,-604.72852079,0.00011655,2]
[339000071,1727113831929,-387.60219871,0.00011655,2]
[339000072,1727113831938,-499.99,0.00011655,2]
[339000073,1727113831947,-323.3,0.00011655,2]
[339000074,1727113831956,-200.0,0.00011669,2]
[339000075,1727113831965,-608.08670695,0.00011669,2]
[339000077,1727113831977,-822.96329305,0.00011669,2]
[339000079,1727113831986,-250.0,0.00011692,2]
[339000081,1727113831997,-212.7395375,0.00011803,2]
[339000084,1727113832010,-287.2604625,0.00011803,2]
[339000086,1727113832019,-70.20325163,0.00011808,2]
[339000088,1727113832031,-79.79674837,0.00011808,2]
[339000089,1727113832040,-156.39,0.00011837,2]
[339000091,1727113832049,-178.97,0.00011906,2]
[339000093,1727113832058,-601.87,0.00012001,2]
[339000094,1727113832068,-224.699,0.0001275,2]
[339000095,1727113832077,-184.45222371,0.0001275,2]
[339000096,1727113832087,-160.02005504,0.0001275,2]
[339000097,1727113832098,-204.70241534,0.0001275,2]
[339000098,1727113832109,-899.86547324,0.0001275,2]
[339000099,1727113832119,-212.39098182,0.0001275,2]
[339000100,1727113832130,-1048.95526513,0.0001275,2]
[339000101,1727113832146,-2663.44733487,0.0001275,2]
[339000102,1727113832156,-153.668,0.0001275,2]
[339000103,1727113832167,-2124.5883,0.0001275,2]
[339000104,1727113832177,-5460.74567083,0.0001275,2]
[339000105,1727113832188,-999.60872917,0.0001275,2]
[339000106,1727113832197,-150.0,0.00012792,2]
[339000107,1727113832209,-420.0,0.00012797,2]
[339000108,1727113832219,-320.04507083,0.00012822,2]
[339000109,1727113832230,-179.95492917,0.00012822,2]
[339000110,1727113832239,-448.46507083,0.00012822,2]
[339000111,1727113832259,-424.51363552,0.00012822,2]
[339000112,1727113837856,-878.53945113,0.00012822,2]
[339000113,1727113837867,-248.48184252,0.00012822,2]
[339000114,1727113837877,-500.0,0.00012822,2]
[339000115,1727113837886,-15.6627354,0.00012822,2]
[339000118,1727113837898,-412.45240119,0.00012822,2]
[339000120,1727113837911,-71.88486341,0.00012822,2]
[339000122,1727113837923,-899.86547322,0.00012825,2]
[339000124,1727113837932,-150.0,0.00012839,2]
[339000125,1727113837941,-153.09,0.0001284,2]
[339000126,1727113837950,-150.0,0.00012842,2]
[339000127,1727113837958,-462.03966337,0.00012849,2]
[339000128,1727113838152,-1120.66502401,0.00012849,2]
[339000129,1727113838163,-13166.88531262,0.00012849,2]
[339000130,1727113838179,-1894.98446523,0.0001285,2]
[339000131,1727113838190,-1627.48024227,0.0001285,2]
[339000132,1727113838201,-879.14563992,0.0001285,2]
[339000133,1727113838212,-2646.2132724,0.0001285,2]
[339000134,1727113838223,-24237.44037059,0.0001285,2]
[339000135,1727113838233,-11613.22040254,0.0001285,2]
[339000136,1727113838244,-14250.43253206,0.0001285,2]
[339000137,1727113838255,-2758.23380241,0.0001285,2]
[339000262,1727113839633,-6862.90398429,0.0001285,2]
[339000265,1727113839655,-1268.017332,0.0001285,2]
[339000268,1727113839676,-953632.19738137,0.0001285,2]
[339000269,1727113839764,-478675.7932491,0.0001285,2]
[339000284,1727113842867,-5567.24797781,0.0001285,2]
[339000285,1727113842879,-5550.89523965,0.0001285,2]
[339000286,1727113842999,-63428.0612178,0.0001285,2]
[339000287,1727113843010,-444.79155,0.0001285,2]
[339000289,1727113845660,-634.41,0.0001285,2]
[339000290,1727113845674,-1906.18600947,0.0001285,2]
[339000291,1727113845744,-635.84286283,0.0001285,2]
[339000292,1727113845755,-9641.70396337,0.0001285,2]
[339000293,1727113845814,-97666.8732724,0.0001285,2]
[339000294,1727113845825,-8999.29505237,0.0001285,2]
[339000295,1727113845958,-1354.70535642,0.0001285,2]
[339000296,1727113845969,-327.09108309,0.0001285,2]
[339000301,1727113990711,177.77,0.00010959,2]
[339000302,1727114216162,621.65,9.946e-05,2]
[339000303,1727114323766,1114.16255462,0.0001,2]
[339000304,1727114328764,1050.0,0.00011,2]
[339000305,1727114773081,632.78,9.73e-05,2]
[339000366,1727115031851,-1226.5551429,0.00011286,2]
[339000367,1727115031861,-373.29,0.000113,2]
[339000368,1727115031870,-318.44904498,0.00011361,2]
[339000369,1727115031881,-303.19,0.00011361,2]
[339000370,1727115031892,-1238.62357742,0.00011361,2]
[339000371,1727115031904,-139.7373776,0.00011361,2]
[339000372,1727115031913,-174.99,0.00011386,2]
[339000373,1727115031923,-250.0,0.00011396,2]
[339000374,1727115031932,-232.47,0.00011402,2]
[339000375,1727115031942,-250.0,0.00011408,2]
[339000376,1727115031952,-1113.38,0.00011442,2]
[339000377,1727115031963,-300.0,0.00011648,2]
[339000378,1727115031972,-4210.24559147,0.00011649,2]
[339000379,1727115031985,-281.36826601,0.00011649,2]
[339000380,1727115031996,-9130.15402162,0.00011649,2]
[339000381,1727115032011,-1144.03705431,0.00011649,2]
[339000382,1727115032025,-700.0,0.00011649,2]
[339000383,1727115032046,-1103.55713475,0.00011649,2]
[339000384,1727115032110,-5851.64793184,0.00011649,2]
[339000386,1727115032119,-170.97,0.00011664,2]
[339000388,1727115032130,-150.0,0.00011688,2]
[339000389,1727115032139,-179.18206816,0.00011709,2]
[339000390,1727115032151,-320.81793184,0.00011709,2]
[339000391,1727115032162,-250.0,0.00011709,2]
[339000392,1727115032171,-567.98,0.00011709,2]
[339000393,1727115032181,-156.41,0.00011712,2]
[339000394,1727115032191,-1000.0,0.00011754,2]
[339000395,1727115032200,-200.0,0.0001183,2]
[339000396,1727115032209,-180.6,0.00011832,2]
[339000397,1727115032218,-89.86991926,0.00011839,2]
[339000404,1727115038028,-410.12008074,0.00011839,2]
[339000405,1727115038038,-169.84,0.00011877,2]
[339000406,1727115038047,-410.39,0.00011924,2]
[339000407,1727115038058,-632.78,0.00011994,2]
[339000408,1727115038067,-150.0,0.00012178,2]
[339000410,1727115038076,-150.57,0.00012278,2]
[339000412,1727115038089,-150.0,0.00012278,2]
[339000414,1727115038100,-150.0,0.00012278,2]
[339000415,1727115038109,-150.0,0.00012725,2]
[339000416,1727115038118,-150.0,0.00012749,2]
[339000417,1727115038127,-179.76,0.0001275,2]
[339000418,1727115038137,-184.45222371,0.0001275,2]
[339000419,1727115038147,-20673.25169371,0.0001275,2]
[339000420,1727115038189,-742.11629914,0.0001275,2]
[339000421,1727115038200,-277.0527081,0.0001275,2]
[339000422,1727115038211,-12779.58135615,0.0001275,2]
[339000423,1727115038222,-2199.16533977,0.0001275,2]
[339000424,1727115038233,-10057.64443999,0.0001275,2]
[339000425,1727115038245,-42229.54826314,0.0001275,2]
[339000426,1727115038254,-21370.45173686,0.0001275,2]
[339000427,1727115038265,-299.58797889,0.0001275,2]
[339000428,1727115038277,-2421.18994312,0.0001275,2]
[339000429,1727115038347,-529.70344543,0.0001275,2]
[339000430,1727115038358,-4722.0267957,0.0001275,2]
[339000431,1727115038368,-715.48,0.000128,2]
[339000432,1727115038377,-500.0,0.00012822,2]
[339000433,1727115038387,-2000.0,0.00012822,2]
[339000434,1727115038396,-35.38195245,0.00012822,2]
[339000435,1727115038407,-464.61804755,0.00012822,2]
[339000436,1727115038417,-423.21211584,0.00012822,2]
[339000437,1727115038430,-76.78788416,0.00012822,2]
[339000438,1727115038441,-153.1,0.0001284,2]
[339000439,1727115038451,-970.42437125,0.00012849,2]
[339000440,1727115038461,-2188.64,0.00012849,2]
[339000441,1727115038470,-13231.37484459,0.0001285,2]
[339000442,1727115038481,-1584.11515541,0.0001285,2]
[339000443,1727115038492,-5578.50318841,0.0001285,2]
[339000444,1727115038542,-2683.58913553,0.0001285,2]
[339000561,1727115039963,-337.374,0.0001285,2]
[339000562,1727115039988,-605.93674917,0.0001285,2]
[339000563,1727115040017,-43091.87520665,0.0001285,2]
[339000564,1727115040028,-291992.53365572,0.0001285,2]
[339000565,1727115040121,-420.525589,0.0001285,2]
[339000566,1727115040132,-7472.70909865,0.0001285,2]
[339000586,1727115042883,-18350.84211819,0.0001285,2]
[339000589,1727115042904,-715.29406689,0.0001285,2]
[339000591,1727115043213,-436.441651,0.0001285,2]
[339000592,1727115043224,-2857.42342736,0.0001285,2]
[339000593,1727115043236,-320.26401847,0.0001285,2]
[339000594,1727115043251,-1963.95623651,0.0001285,2]
[339000595,1727115043262,-802.06340159,0.0001285,2]
[339000596,1727115043273,-3918.7910805,0.0001285,2]
[339000597,1727115043285,-4342.00319205,0.0001285,2]
[339000598,1727115043296,-526.83208673,0.0001285,2]
[339000599,1727115043307,-2645.12969923,0.0001285,2]
[339000601,1727115045901,-850.0,0.0001285,2]
[339000602,1727115045913,-768.85,0.0001285,2]
[339000603,1727115045995,-5024.88033492,0.0001285,2]
[339000604,1727115046006,-36090.74071152,0.0001285,2]
[339000605,1727115046018,-34253.45091569,0.0001285,2]
[339000606,1727115046088,-432.77116256,0.0001285,2]
[339000609,1727115046721,-346.76974357,0.0001285,2]
[339000610,1727115046732,-1271.36082292,0.0001285,2]
[339000611,1727115046743,-4553.8190213,0.0001285,2]
[339000612,1727115046769,-12727.19999993,0.0001285,2]
[339000613,1727115046788,-5800.7172,0.0001285,2]
[339000615,1727115169504,398.47709492,0.00011101,2]
[339000616,1727115379211,569.5,9.925e-05,2]
[339000617,1727115457816,179.49,0.00010959,2]
[339000619,1727115936082,-409.17,0.00011659,2]
[339000620,1727115936105,-169.55,0.00011684,2]
[339000621,1727115936127,-150.0,0.00011688,2]
[339000622,1727115936149,-250.0,0.000117,2]
[339000623,1727115936171,-329.27,0.00011709,2]
[339000624,1727115936194,-1000.0,0.00011733,2]
[339000625,1727115936215,-500.0,0.00011744,2]
[339000626,1727115936237,-156.41,0.0001177,2]
[339000627,1727115936258,-186.64,0.00011799,2]
[339000628,1727115936281,-250.0,0.00011822,2]
[339000629,1727115936303,-464.29,0.00011823,2]
[339000630,1727115936325,-499.99,0.00011823,2]
[339000631,1727115936346,-755.66,0.00011836,2]
[339000632,1727115936370,-250.0,0.00011836,2]
[339000633,1727115936391,-401.88695953,0.00011872,2]
[339000634,1727115936413,-569.5,0.00012189,2]
[339000635,1727115936630,-325.88470146,0.00012429,2]
[339000636,1727115936652,-150.0,0.00012649,2]
[339000637,1727115936674,-8121.581,0.0001265,2]
[339000638,1727115936699,-2000.0,0.0001265,2]
[339000639,1727115936720,-2500.0,0.0001265,2]
[339000640,1727115936743,-179.76,0.0001265,2]
[339000641,1727115936765,-5374.03585139,0.0001265,2]
[339000642,1727115936787,-178.43047603,0.0001265,2]
[339000643,1727115936807,-6876.5305,0.0001265,2]
[339000644,1727115936834,-14133.0822,0.0001265,2]
[339000645,1727115936854,-10716.39480595,0.00012668,2]
[339000646,1727115936876,-5374.03585133,0.00012678,2]
[339000647,1727115936897,-150.0,0.000127,2]
[339000648,1727115936918,-150.0,0.000127,2]
[339000649,1727115936939,-150.45,0.000127,2]
[339000650,1727115936961,-150.0,0.000127,2]
[339000651,1727115936984,-349.46,0.000127,2]
[339000652,1727115937005,-300.0,0.000127,2]
[339000653,1727115937025,-428.27,0.000127,2]
[339000654,1727115937046,-150.0,0.000127,2]
[339000655,1727115937068,-5374.03585133,0.00012706,2]
[339000656,1727115937091,-5374.03585133,0.00012733,2]
[339000657,1727115937113,-500.0,0.00012747,2]
[339000658,1727115937134,-2000.0,0.00012747,2]
[339000659,1727115937155,-500.0,0.00012747,2]
[339000660,1727115937176,-500.0,0.00012747,2]
[339000661,1727115937198,-200.0,0.00012747,2]
[339000662,1727115937218,-7635.91616205,0.00012749,2]
[339000663,1727115937239,-18067.5931,0.0001275,2]
[339000664,1727115937260,-43635.1173,0.0001275,2]
[339000665,1727115937283,-190670.4452,0.0001275,2]
[339000666,1727115937306,-344.51611968,0.0001275,2]
[339000667,1727115937327,-500.0,0.0001275,2]
[339000668,1727115937350,-5374.03585133,0.00012761,2]
[339000669,1727115937376,-5374.03585133,0.00012789,2]
[339000670,1727115937401,-150.0,0.00012796,2]
[339000671,1727115937425,-5374.03585133,0.00012817,2]
[339000672,1727115937454,-151.7,0.0001284,2]
[339000673,1727115937477,-5374.03585133,0.00012844,2]
[339000674,1727115937498,-500.0,0.00012849,2]
[339000675,1727115937520,-623.52264737,0.00012849,2]
[339000676,1727115937542,-970.42437124,0.00012849,2]
[339000677,1727115937565,-1037.72742797,0.00012849,3]
[339000678,1727115937587,-3914.3842206,0.0001285,2]
[339000679,1727115937609,-212.21872926,0.0001285,2]
[339000680,1727115937630,-173.7685889,0.0001285,2]
[339000681,1727115937654,-1060828.37648812,0.0001285,2]
[339000682,1727115937678,-423988.51620434,0.0001285,2]
[339000683,1727115937700,-308.49568939,0.0001285,2]
[339000684,1727115937721,-1057.24627154,0.0001285,2]
[339000685,1727115937742,-200.0,0.0001285,2]
[339000686,1727115937763,-1000.0,0.0001285,2]
[339000687,1727115937785,-1000.0,0.0001285,2]
[339000688,1727115937805,-1000.0,0.0001285,2]
[339000689,1727115937827,-1000.0,0.0001285,2]
[339000690,1727115937848,-1000.0,0.0001285,2]
[339000691,1727115937868,-1000.0,0.0001285,2]
[339000692,1727115937889,-1000.0,0.0001285,2]
[339000693,1727115937911,-577.27071446,0.0001285,2]
[339000694,1727115937932,-2000.0,0.0001285,2]
[339000695,1727115937954,-200.0,0.0001285,2]
[339000696,1727115937975,-200.0,0.0001285,2]
[339000697,1727115937997,-2000.0,0.0001285,2]
[339000698,1727115938018,-200.0,0.0001285,2]
[339000699,1727115938040,-5374.03585133,0.00012872,2]
[339000700,1727115938063,-500.0,0.00012873,2]
[339000701,1727115938084,-422.44759378,0.00012873,2]
[339000702,1727115938107,-500.0,0.00012876,2]
[339000703,1727115938128,-498.36563869,0.00012876,2]
[339000704,1727115938151,-500.0,0.00012876,2]
[339000705,1727115938172,-352.37485367,0.00012876,2]
[339000706,1727115938194,-500.0,0.00012876,2]
[339000707,1727115938215,-500.0,0.00012876,2]
[339000708,1727115938236,-500.0,0.00012876,2]
[339000709,1727115938258,-488.49,0.00012876,2]
[339000710,1727115938280,-500.0,0.00012876,2]
[339000711,1727115938301,-500.0,0.00012876,2]
[339000712,1727115938322,-500.0,0.00012876,2]
[339000713,1727115938343,-500.0,0.00012876,2]
[339000714,1727115938366,-500.0,0.00012876,2]
[339000715,1727115938387,-500.0,0.00012876,2]
[339000716,1727115938408,-500.0,0.00012876,2]
[339000717,1727115938429,-500.0,0.00012876,2]
[339000718,1727115938451,-385.2954853,0.00012876,2]
[339000719,1727115938472,-500.0,0.00012876,2]
[339000720,1727115938493,-500.0,0.00012876,2]
[339000721,1727115938513,-351.66571907,0.00012876,2]
[339000722,1727115938535,-500.0,0.00012876,2]
[339000723,1727115938555,-330.16,0.00012876,2]
[339000724,1727115938576,-500.0,0.00012876,2]
[339000725,1727115938596,-211.2,0.00012876,2]
[339000726,1727115938620,-500.0,0.00012876,2]
[339000727,1727115938641,-557.0951316,0.00012876,2]
[339000728,1727115938662,-500.0,0.00012876,2]
[339000729,1727115938683,-500.0,0.00012876,2]
[339000730,1727115938704,-253.23,0.00012876,2]
[339000731,1727115938725,-500.0,0.00012876,2]
[339000732,1727115938745,-500.0,0.00012876,2]
[339000733,1727115938766,-500.0,0.00012876,2]
[339000734,1727115938787,-213.52,0.00012876,2]
[339000735,1727115938807,-500.0,0.00012876,2]
[339000736,1727115938833,-500.0,0.00012876,2]
[339000737,1727115938854,-500.0,0.00012876,2]
[339000738,1727115938876,-500.0,0.00012876,2]
[339000739,1727115938897,-500.0,0.00012876,2]
[339000740,1727115938918,-376.8,0.00012876,2]
[339000741,1727115938939,-172.81,0.00012876,2]
[339000742,1727115938960,-500.0,0.00012876,2]
[339000743,1727115938981,-160.08,0.00012876,2]
[339000744,1727115939002,-408.66,0.00012876,2]
[339000745,1727115939024,-311.72,0.00012876,2]
[339000746,1727115939045,-500.0,0.00012876,2]
[339000747,1727115939066,-500.0,0.00012876,2]
[339000748,1727115939087,-500.0,0.00012876,2]
[339000749,1727115939108,-500.0,0.00012876,2]
[339000750,1727115939130,-500.0,0.00012876,2]
[339000751,1727115939150,-500.0,0.00012876,2]
[339000752,1727115939170,-573.00891089,0.00012876,2]
[339000753,1727115939193,-500.0,0.00012876,2]
[339000754,1727115939214,-338.37,0.00012876,2]
[339000755,1727115939235,-500.0,0.00012876,2]
[339000756,1727115939255,-377.33083912,0.00012876,2]
[339000757,1727115939274,-528.31619952,0.00012876,2]
[339000758,1727115939293,-500.0,0.00012876,2]
[339000759,1727115939311,-165.29,0.00012876,2]
[339000760,1727115939331,-500.0,0.00012876,2]
[339000761,1727115939352,-500.0,0.00012876,2]
[339000762,1727115939376,-500.0,0.00012876,2]
[339000763,1727115939395,-567.43,0.00012876,2]
[339000764,1727115939415,-382.88,0.00012876,2]
[339000765,1727115939436,-500.0,0.00012876,2]
[339000766,1727115939457,-307.35625652,0.00012876,2]
[339000767,1727115939477,-500.0,0.00012876,2]
[339000768,1727115939496,-500.0,0.00012876,2]
[339000769,1727115939515,-574.07433359,0.00012876,2]
[339000770,1727115939534,-500.0,0.00012876,2]
[339000771,1727115939554,-159.79288032,0.00012876,2]
[339000772,1727115939576,-485.52572746,0.00012876,2]
[339000773,1727115939597,-500.0,0.00012876,2]
[339000774,1727115939618,-500.0,0.00012876,2]
[339000775,1727115939638,-500.0,0.00012876,2]
[339000776,1727115939659,-500.0,0.00012876,2]
[339000777,1727115939680,-500.95329522,0.00012876,2]
[339000778,1727115939700,-500.0,0.00012876,2]
[339000779,1727115939722,-287.81,0.00012876,2]
[339000780,1727115939742,-500.0,0.00012876,2]
[339000781,1727115939763,-501.31174587,0.00012876,2]
[339000782,1727115939784,-500.0,0.00012876,2]
[339000783,1727115939805,-500.0,0.00012876,2]
[339000784,1727115939826,-500.0,0.00012876,2]
[339000785,1727115939846,-186.07385317,0.00012876,2]
[339000786,1727115939866,-509.47,0.00012876,2]
[339000787,1727115939887,-500.0,0.00012876,2]
[339000788,1727115939909,-500.0,0.00012876,2]
[339000789,1727115939931,-432.69,0.00012876,2]
[339000790,1727115939952,-500.0,0.00012876,2]
[339000791,1727115939974,-519.60654278,0.00012876,2]
[339000792,1727115939995,-500.0,0.00012876,2]
[339000793,1727115940017,-500.0,0.00012876,2]
[339000794,1727115940039,-500.0,0.00012876,2]
[339000795,1727115940061,-500.0,0.00012876,2]
[339000796,1727115940083,-500.0,0.00012876,2]
[339000797,1727115940103,-282.45,0.00012876,2]
[339000798,1727115940125,-500.0,0.00012876,2]
[339000799,1727115940148,-500.0,0.00012876,2]
[339000800,1727115940170,-500.0,0.00012876,2]
[339000801,1727115940190,-500.0,0.00012876,2]
[339000802,1727115940211,-500.0,0.00012876,2]
[339000803,1727115940231,-500.0,0.00012876,2]
[339000804,1727115940252,-500.0,0.00012876,2]
[339000805,1727115940273,-500.0,0.00012876,2]
[339000806,1727115940294,-500.0,0.00012876,2]
[339000807,1727115940314,-500.0,0.00012876,2]
[339000808,1727115940335,-247.46,0.00012876,2]
[339000809,1727115940358,-500.0,0.00012876,2]
[339000810,1727115940379,-500.0,0.00012876,2]
[339000811,1727115940403,-500.0,0.00012876,2]
[339000812,1727115940424,-500.0,0.00012876,2]
[339000813,1727115940601,-500.0,0.00012876,2]
[339000814,1727115940622,-463.76637665,0.00012876,2]
[339000815,1727115940642,-500.0,0.00012876,2]
[339000816,1727115940662,-500.0,0.00012876,2]
[339000817,1727115940683,-500.0,0.00012876,2]
[339000818,1727115940709,-417.36,0.00012876,2]
[339000819,1727115940730,-500.0,0.00012876,2]
[339000820,1727115940752,-500.0,0.00012876,2]
[339000821,1727115940774,-500.0,0.00012876,2]
[339000822,1727115940796,-500.0,0.00012876,2]
[339000823,1727115940816,-500.0,0.00012876,2]
[339000824,1727115940837,-500.0,0.00012876,2]
[339000825,1727115940857,-500.0,0.00012876,2]
[339000826,1727115940879,-500.0,0.00012876,2]
[339000827,1727115940900,-500.0,0.00012876,2]
[339000828,1727115940921,-279.93,0.00012876,2]
[339000829,1727115940943,-500.0,0.00012876,2]
[339000830,1727115940964,-500.0,0.00012876,2]
[339000831,1727115940985,-500.0,0.00012876,2]
[339000832,1727115941006,-500.0,0.00012876,2]
[339000833,1727115941027,-500.0,0.00012876,2]
[339000834,1727115941047,-500.0,0.00012876,2]
[339000835,1727115941068,-500.0,0.00012876,2]
[339000836,1727115941087,-500.0,0.00012876,2]
[339000837,1727115941107,-500.0,0.00012876,2]
[339000838,1727115941127,-500.0,0.00012876,2]
[339000839,1727115941148,-500.0,0.00012876,2]
[339000840,1727115941169,-500.0,0.00012876,2]
[339000841,1727115941198,-500.0,0.00012876,2]
[339000842,1727115941219,-500.0,0.00012876,2]
[339000843,1727115941239,-516.3,0.00012876,2]
[339000844,1727115941259,-500.0,0.00012876,2]
[339000845,1727115941279,-500.0,0.00012876,2]
[339000846,1727115941299,-500.0,0.00012876,2]
[339000847,1727115941319,-500.0,0.00012876,2]
[339000848,1727115941340,-609.05,0.00012876,2]
[339000849,1727115941365,-500.0,0.00012876,2]
[339000850,1727115941385,-500.0,0.00012876,2]
[339000851,1727115941406,-500.0,0.00012876,2]
[339000852,1727115941426,-500.0,0.00012876,2]
[339000853,1727115941455,-500.0,0.00012876,2]
[339000854,1727115941475,-229.38,0.00012876,2]
[339000855,1727115941496,-500.0,0.00012876,2]
[339000856,1727115941517,-500.0,0.00012876,2]
[339000857,1727115941539,-500.0,0.00012876,2]
[339000858,1727115941560,-500.0,0.00012876,2]
[339000859,1727115941583,-500.0,0.00012876,2]
[339000860,1727115941604,-500.0,0.00012876,2]
[339000861,1727115941625,-500.0,0.00012876,2]
[339000862,1727115941647,-500.0,0.00012876,2]
[339000863,1727115941667,-500.0,0.00012876,2]
[339000864,1727115941690,-500.0,0.00012876,2]
[339000865,1727115941710,-257.38863256,0.00012876,2]
[339000866,1727115941731,-592.82,0.00012876,2]
[339000867,1727115941752,-500.0,0.00012876,2]
[339000868,1727115941772,-500.0,0.00012876,2]
[339000869,1727115941793,-412.27,0.00012876,2]
[339000870,1727115941814,-269.76189157,0.00012876,2]
[339000871,1727115941835,-500.0,0.00012876,2]
[339000872,1727115941857,-500.0,0.00012876,2]
[339000873,1727115941878,-500.0,0.00012876,2]
[339000874,1727115941898,-500.0,0.00012876,2]
[339000875,1727115941920,-500.0,0.00012876,2]
[339000876,1727115941943,-590.87401377,0.00012876,2]
[339000877,1727115941963,-500.0,0.00012876,2]
[339000878,1727115941984,-500.0,0.00012876,2]
[339000879,1727115942006,-500.0,0.00012876,2]
[339000880,1727115942028,-415.65,0.00012876,2]
[339000881,1727115942048,-258.3,0.00012876,2]
[339000882,1727115942070,-502.03,0.00012876,2]
[339000883,1727115942092,-500.0,0.00012876,2]
[339000884,1727115942113,-500.0,0.00012876,2]
[339000885,1727115942135,-563.83,0.00012876,2]
[339000886,1727115942155,-500.0,0.00012876,2]
[339000887,1727115942176,-500.0,0.00012876,2]
[339000888,1727115942200,-188.93,0.00012876,2]
[339000889,1727115942222,-500.0,0.00012876,2]
[339000890,1727115942244,-490.75,0.00012876,2]
[339000891,1727115942265,-500.0,0.00012876,2]
[339000892,1727115942286,-500.0,0.00012876,2]
[339000893,1727115942307,-290.86,0.00012876,2]
[339000894,1727115942328,-500.0,0.00012876,2]
[339000895,1727115942349,-425.83648572,0.00012876,2]
[339000896,1727115942373,-500.0,0.00012876,2]
[339000897,1727115942394,-500.0,0.00012876,2]
[339000898,1727115942415,-500.0,0.00012876,2]
[339000899,1727115942436,-500.0,0.00012876,2]
[339000900,1727115942460,-293.56,0.00012876,2]
[339000901,1727115942481,-450.54,0.00012876,2]
[339000902,1727115942502,-500.0,0.00012876,2]
[339000903,1727115942523,-500.0,0.00012876,2]
[339000904,1727115942544,-500.0,0.00012876,2]
[339000905,1727115942565,-500.0,0.00012876,2]
[339000906,1727115942588,-500.0,0.00012876,2]
[339000907,1727115942609,-500.0,0.00012876,2]
[339000908,1727115942630,-618.08,0.00012876,2]
[339000909,1727115942650,-500.0,0.00012876,2]
[339000910,1727115942671,-616.65,0.00012876,2]
[339000911,1727115942692,-500.0,0.00012876,2]
[339000912,1727115942713,-500.0,0.00012876,2]
[339000913,1727115942734,-500.0,0.00012876,2]
[339000914,1727115942755,-343.11,0.00012876,2]
[339000915,1727115942776,-500.0,0.00012876,2]
[339000916,1727115942797,-500.0,0.00012876,2]
[339000917,1727115942817,-500.0,0.00012876,2]
[339000918,1727115942842,-500.0,0.00012876,2]
[339000919,1727115942863,-500.0,0.00012876,2]
[339000920,1727115942884,-500.0,0.00012876,2]
[339000921,1727115942905,-500.0,0.00012876,2]
[339000922,1727115942926,-500.0,0.00012876,2]
[339000923,1727115942948,-500.0,0.00012876,2]
[339000924,1727115942969,-500.0,0.00012876,2]
[339000925,1727115942990,-295.34501265,0.00012876,2]
[339000926,1727115943011,-500.0,0.00012876,2]
[339000927,1727115943034,-500.0,0.00012876,2]
[339000928,1727115943058,-500.0,0.00012876,2]
[339000929,1727115943079,-500.0,0.00012876,2]
[339000930,1727115943099,-500.0,0.00012876,2]